Cogmind - Beta 11 X5 @@@ ROGUE MODE // 2021.08.25 @ 20:27:10 Player: Timo Result: Destroyed by S-27 Virus with Autogun Performance ------------- Evolutions (5) 2500 Regions Visited (12) 2400 Robots Destroyed (72) 360 Value Destroyed (2406) 2406 Prototype IDs (17) 340 Alien Tech Used (1) 200 Bonus (653) 653 TOTAL SCORE: 8859 Bonus ------- High Alert Combat Kills 39 Follower Combat Kills 14 Aligned with FarCom 300 Met Data Miner 300 Cogmind --------- Core Integrity 0/1000 Matter 163/300 Energy 98/100 System Corruption 4% Temperature Cool (0) Movement Core (50) Location -5/Factory Parts ------- > --- POWER (2) -------- (None) > --- PROPULSION (4) --- (None) > --- UTILITY (9) ------ (None) > --- WEAPON (2) ------- (None) > --- INVENTORY (5) ---- Advanced Heat Sink Improved Matter Compressor (0) Improved Kinecellerator Neutron Cannon Mass Driver Peak State ------------ > --- POWER ------------ Enhanced Fission Core Micro Fission Core > --- PROPULSION ------- Antigrav System Gyrokinetic Inverter Linear Gravjet Field Propulsion Drive > --- UTILITY ---------- Improved Matter Compressor Enhanced Optical Array Advanced Signal Interpreter Experimental Targeting Computer Improved Kinecellerator Improved Maneuvering Thrusters > --- WEAPON ----------- Heavy Laser Magnetic Acceleration Cannon > --- INVENTORY -------- Advanced Heat Sink Neutron Cannon Mass Driver [Rating: 81] Favorites ----------- Power Micro Nuclear Core Engine Ion Engine Power Core Micro Nuclear Core Propulsion Armored Huge Wheel Treads Light Treads Leg Aluminum Leg Wheel Armored Huge Wheel Hover Unit Gyrokinetic Inverter Flight Unit Field Propulsion Drive Utility Medium Storage Unit Device Cloak of Protection Storage Medium Storage Unit Processor Targeting Computer Protection Improved Power Shielding Weapon AWS/Thermal Energy Gun AWS/Thermal Energy Cannon Heavy Plasma Cannon Ballistic Gun Gauss Rifle Ballistic Cannon Battle Cannon Special Weapon Mining Laser Slashing Weapon Mining Claw Build | -11 -10 -10 -10 -9 -8 -7 -6 -6 -6 -6 -5 -5 ------- Run | Scr Mat Min Exi Min Mat Fac Fac Low Low Dat Pro Fac Slots Evolved 10 | . . . . . 4 2 2 . . . . 2 Power 1 | . . . . . 1 . . . . . . . Propulsion 2 | . . . . . 1 . 1 . . . . . Utility 7 | . . . . . 2 2 1 . . . . 2 Weapon . | . . . . . . . . . . . . . Parts Attached 83 | . 9 1 4 5 6 9 21 2 . . 4 22 Power 9 | . 2 . . 3 1 . 1 . . . . 2 Engine 3 | . 2 . . 1 . . . . . . . . Core 6 | . . . . 2 1 . 1 . . . . 2 Reactor . | . . . . . . . . . . . . . Propulsion 14 | . 1 . . 2 2 1 1 1 . . . 6 Treads 4 | . . . . 2 1 . . . . . . 1 Leg 1 | . 1 . . . . . . . . . . . Wheel 4 | . . . . . 1 1 1 1 . . . . Hover 4 | . . . . . . . . . . . . 4 Flight 1 | . . . . . . . . . . . . 1 Utility 39 | . 2 . 3 . 3 5 14 1 . . 3 8 Device 17 | . . . 3 . . 3 6 1 . . . 4 Storage 3 | . 1 . . . . . 1 . . . . 1 Processor 8 | . . . . . 1 1 3 . . . 1 2 Hackware . | . . . . . . . . . . . . . Protection 11 | . 1 . . . 2 1 4 . . . 2 1 Artifact . | . . . . . . . . . . . . . Weapon 21 | . 4 1 1 . . 3 5 . . . 1 6 Energy Gun 7 | . 1 . 1 . . 1 2 . . . . 2 Energy Cannon 3 | . . . . . . 1 1 . . . . 1 Ballistic Gun 4 | . 1 . . . . 1 2 . . . . . Ballistic Cannon 4 | . . 1 . . . . . . . . . 3 Launcher . | . . . . . . . . . . . . . Special Weapon 2 | . 1 . . . . . . . . . 1 . Impact Weapon . | . . . . . . . . . . . . . Slashing Weapon 1 | . 1 . . . . . . . . . . . Piercing Weapon . | . . . . . . . . . . . . . Special Melee Weapon . | . . . . . . . . . . . . . Unidentified Prototypes 7 | . . . 3 . . . . . . . 2 2 Parts Lost 30 | . 4 1 . . . 1 1 2 . . 8 13 Power 4 | . 2 . . . . . . . . . 2 . Propulsion 7 | . 1 1 . . . . . 1 . . . 4 Utility 14 | . . . . . . 1 1 1 . . 5 6 Weapon 5 | . 1 . . . . . . . . . 1 3 Highest Loss Streak 7 | . 2 1 . . . 1 1 2 . . 7 4 Average Slot Usage (%) 78 | . 93 93 78 68 73 85 81 85 86 86 81 45 Engine 3 | . 13 14 11 . . . . . . . . . Core 8 | . . . . 4 18 15 13 13 13 13 11 3 Treads 2 | . . . . 11 2 7 . . . . . . Leg 6 | . 27 21 14 8 . . . . . . . . Wheel 5 | . . . . . 8 7 13 13 13 13 12 . Device 8 | . . . 3 14 9 14 8 9 13 13 6 3 Storage 9 | . 14 14 14 14 9 7 6 6 6 6 5 . Processor 10 | . . . . . 9 14 17 20 20 20 23 18 Protection 7 | . 11 14 9 . 9 7 12 9 6 6 6 . Energy Gun 5 | . 14 4 2 14 9 3 2 . . . . 2 Energy Cannon 1 | . . . . . . 3 1 6 6 6 5 . Ballistic Gun 2 | . 5 . . . . 1 3 6 6 6 5 . Ballistic Cannon 2 | . . 9 11 . . . . . . . . 2 Special Weapon 2 | . . 14 11 . . . . . . . . . Naked Turns 6 | . . . . . . . . . . . . 6 Heaviest Build 115 | 12 19 20 27 33 43 44 115 115 109 109 109 42 Greatest Support 56 | 20 20 20 10 40 40 28 56 56 56 56 56 31 Greatest Overweight (x) 4 | . 1 1 2 2 1 1 2 2 1 1 1 4 Average Overweight (x) . | . . . 1 . 1 1 . 1 1 1 . . Largest Inventory Capacity 25 | 8 10 10 10 10 10 10 25 25 25 25 25 5 Average Capacity 13 | 8 9 10 10 10 10 10 15 25 25 25 23 5 Most Carried 17 | 6 10 10 10 10 10 10 17 17 15 15 17 5 Average Carried 10 | 6 8 9 9 9 9 8 10 15 14 15 14 3 Final Capacity 25 | 8 10 10 10 10 10 10 25 25 25 25 5 5 Final Carried 16 | 6 10 10 10 10 10 10 16 14 15 15 5 5 Class Distribution -------------------- 98% | Mutant Dominant Class ---------------- Mutant | -10/Materials Mutant | -10/Mines Mutant | -10/Exiles Mutant | -9/Mines Mutant | -8/Materials Mutant | -7/Factory Mutant | -6/Factory Mutant | -6/Lower Caves Mutant | -6/Lower Caves Mutant | -6/Data Miner Mutant | -5/Proximity Caves Mutant | -5/Factory Resources | -11 -10 -10 -10 -9 -8 -7 -6 -6 -6 -6 -5 -5 ----------- Run | Scr Mat Min Exi Min Mat Fac Fac Low Low Dat Pro Fac Matter Collected 1615 | 200 304 67 . 148 50 107 338 56 27 . 35 283 Remotely . | . . . . . . . . . . . . . Salvage Created 2481 | . 285 18 . 104 233 582 751 120 17 . 55 316 Parts 148 | . 17 5 . 10 20 30 38 7 7 . 2 12 Haulers Intercepted . | . . . . . . . . . . . . . Recyclers Shooed 6 | . 1 . . . . 1 4 . . . . . Parts Field Recycled . | . . . . . . . . . . . . . Retrieved Matter . | . . . . . . . . . . . . . Parts Self-Destructed 7 | . . . . . . . . 2 . . 5 . Prevented 1 | . . . . . . . . . 1 . . . Kills | -11 -10 -10 -10 -9 -8 -7 -6 -6 -6 -6 -5 -5 ------- Run | Scr Mat Min Exi Min Mat Fac Fac Low Low Dat Pro Fac Combat Hostiles Destroyed 63 | . 10 3 . 8 9 10 12 2 1 . 1 7 Guns 42 | . 10 . . 8 9 5 8 1 1 . . . Cannons 19 | . . 3 . . . 5 3 1 . . . 7 Classes Destroyed 14 | . 3 . . . 2 4 2 1 1 . . 1 Worker 1 | . . . . . . 1 . . . . . . Builder 1 | . . . . . . . . . . . . 1 Recycler 1 | . 1 . . . . . . . . . . . Operator 1 | . . . . . . . 1 . . . . . Watcher 5 | . . . . . 2 2 1 . . . . . Swarmer 28 | . 8 3 . 8 8 1 . . . . . . Grunt 14 | . 2 . . . . 3 5 . . . . 4 Brawler 4 | . . . . . . 2 1 . . . . 1 Duelist 1 | . . . . . . 1 . . . . . . Sentry 3 | . . . . . . . 2 . . . 1 . Hunter 3 | . . . . . 1 2 . . . . . . Programmer 8 | . . . . . . 1 4 1 . . . 2 Master Thief 1 | . . . . . . . . . 1 . . . Mutant 1 | . . . . . . . . 1 . . . . Best Kill Streak 6 | . 6 2 . 4 4 4 3 1 1 . 1 4 Combat Bots Only 6 | . 6 2 . 4 4 3 3 1 1 . 1 4 Max Kills in Single Turn 1 | . 1 1 . 1 1 1 1 1 1 . 1 1 Gunslinging . | . . . . . . . . . . . . . Exploded . | . . . . . . . . . . . . . Melee . | . . . . . . . . . . . . . Uniques/NPCs Destroyed . | . . . . . . . . . . . . . Combat | -11 -10 -10 -10 -9 -8 -7 -6 -6 -6 -6 -5 -5 -------- Run | Scr Mat Min Exi Min Mat Fac Fac Low Low Dat Pro Fac Damage Taken 6451 | . 502 160 . 215 150 491 929 247 12 . 1104 2641 Core 1949 | . 135 30 . 37 . 83 167 37 . . 455 1005 Absorbed by Shields . | . . . . . . . . . . . . . Core Remaining (%) 65 | 100 . . . 19 100 88 . . . . 22 . Volleys Fired 196 | . 29 20 . . . 20 33 12 5 . 29 48 Largest 2 | . 2 1 . . . 1 2 2 2 . 2 2 Hottest 122 | . 60 39 . . . 80 118 118 118 . 118 122 Shots Fired 341 | . 39 20 . 17 34 55 64 22 10 . 32 48 Gun 204 | . 39 . . 17 34 35 51 10 5 . 3 10 Cannon 135 | . . 20 . . . 20 13 12 5 . 27 38 Launcher . | . . . . . . . . . . . . . Special 2 | . . . . . . . . . . . 2 . Kinetic 125 | . 18 20 . . . . 32 10 5 . 3 37 Thermal 203 | . 11 . . 17 34 55 32 12 5 . 27 10 Explosive . | . . . . . . . . . . . . . Electromagnetic 11 | . 10 . . . . . . . . . . 1 Robot Hit Streak 31 | . 5 2 . 5 5 14 14 14 3 . 6 31 Robot Miss Streak 7 | . 4 7 . 2 3 2 2 1 4 . 1 3 Penetration Max 1 | . . . . . . . 1 . 1 . . . Secondary Targets 3 | . 3 . . . . . . . . . . . Max Gunslinging Chain 1 | . 1 . . . . . . . . . . . Autonomous 107 | . . . . 17 34 36 20 . . . . . Shots Hit Robots 218 | . 24 6 . 11 23 45 46 15 4 . 6 38 Core Hits 105 | . 14 3 . 8 12 24 22 5 1 . 1 15 Critical Kills 3 | . . . . . . . 2 . 1 . . . Critical Parts Destroyed 1 | . . . . . . . 1 . . . . . Critical Strikes 8 | . 1 . . . . . 3 . 1 . . 3 Meltdown 1 | . . . . . . . 1 . . . . . Destroy 3 | . . . . . . . 2 . 1 . . . Blast 3 | . . . . . . . . . . . . 3 Corrupt 1 | . 1 . . . . . . . . . . . Melee Attacks 8 | . 8 . . . . . . . . . . . Impact . | . . . . . . . . . . . . . Slashing 8 | . 8 . . . . . . . . . . . Piercing . | . . . . . . . . . . . . . Sneak Attacks . | . . . . . . . . . . . . . Combat Hostiles . | . . . . . . . . . . . . . Follow-up Attacks . | . . . . . . . . . . . . . Damage Inflicted 6183 | . 285 127 . 321 619 1353 1260 441 119 . 103 1555 Guns 3744 | . 285 . . 321 619 862 1040 221 84 . 42 270 Cannons 1963 | . . 127 . . . 409 220 220 35 . 61 891 Explosions 433 | . . . . . . 75 . . . . . 358 Melee . | . . . . . . . . . . . . . Ramming 43 | . . . . . . 7 . . . . . 36 Kinetic 2019 | . 131 127 . . . . 552 221 84 . 42 862 Thermal 3940 | . 77 . . 321 619 1271 708 220 35 . 61 628 Explosive . | . . . . . . . . . . . . . Electromagnetic 181 | . 77 . . . . 75 . . . . . 29 Impact . | . . . . . . . . . . . . . Slashing . | . . . . . . . . . . . . . Piercing . | . . . . . . . . . . . . . Highest Corruption 4 | . . . . . . 3 3 3 3 3 3 4 Average Corruption 2 | . . . . . . 2 2 3 3 3 3 3 Corruption Purged . | . . . . . . . . . . . . . Effects 39 | . . . . . . 3 5 10 6 1 5 9 Message Errors 9 | . . . . . . . 3 2 1 . 1 2 Matter Fused 10 | . . . . . . 1 1 2 1 . 2 3 Heat Flow Errors 10 | . . . . . . 1 1 3 2 1 . 2 Energy Discharges 5 | . . . . . . 1 . 2 . . 1 1 Data Loss (minor) 4 | . . . . . . . . 1 2 . 1 . Weapon Failures 1 | . . . . . . . . . . . . 1 Overload Shots . | . . . . . . . . . . . . . Overflow Damage 191 | . . . . . . . 4 23 10 . . 154 Projectiles 37 | . . . . . . . 4 23 10 . . . Explosions 154 | . . . . . . . . . . . . 154 Melee . | . . . . . . . . . . . . . Knockbacks 14 | . . 2 . . . . . . . . . 12 Impact . | . . . . . . . . . . . . . Kinetic 14 | . . 2 . . . . . . . . . 12 Secondary . | . . . . . . . . . . . . . Self-Inflicted Damage 208 | . . . . . . 3 . . . . . 205 Shots 2 | . . . . . . . . . . . . 2 Rammed 5 | . . . . . . 1 . . . . . 4 Targets Rammed 5 | . . . . . . 1 . . . . . 4 Kicked . | . . . . . . . . . . . . . Crushed . | . . . . . . . . . . . . . Highest Temperature 414 | . 19 . . . . 414 142 412 174 244 135 265 Average Temperature 92 | . 7 . . . . 164 39 136 77 139 45 69 Received Heat Transfer 864 | . 72 . . . . 189 216 . . . 90 297 Effects 8 | . . . . . . 7 . 1 . . . . Shutdowns 1 | . . . . . . 1 . . . . . . Energy Bleed 1 | . . . . . . . . 1 . . . . Interference 6 | . . . . . . 6 . . . . . . Siege Activations . | . . . . . . . . . . . . . Robots Corrupted . | . . . . . . . . . . . . . Combat Hostiles . | . . . . . . . . . . . . . Parts Fried . | . . . . . . . . . . . . . Impact Corruptions . | . . . . . . . . . . . . . Robots Melted 1 | . . . . . . . 1 . . . . . Combat Hostiles 1 | . . . . . . . 1 . . . . . Parts Melted 11 | . 1 . . . 4 2 3 1 . . . . Heat Transferred 5281 | . 175 . . 407 814 1873 992 300 50 . 100 570 Parts Sabotaged . | . . . . . . . . . . . . . Parts Stolen 1 | . . . . . . . . . 1 . . . Parts Stripped . | . . . . . . . . . . . . . Power Chain Reactions . | . . . . . . . . . . . . . Missiles Intercepted . | . . . . . . . . . . . . . Alert | -11 -10 -10 -10 -9 -8 -7 -6 -6 -6 -6 -5 -5 ------- Run | Scr Mat Min Exi Min Mat Fac Fac Low Low Dat Pro Fac Peak Influence 694 | . 275 143 . 140 207 694 484 . . . . 246 Initial 339 | . . 64 . . . 42 339 . . . . . Average 167 | . 126 74 . 41 109 218 348 . . . . 101 Maximum Alert Level 2 | . 1 . . . 1 2 2 . . . . 1 Low Security (%) 65 | 100 77 100 . 100 98 57 . . . . . 88 Level 1 27 | . 22 . . . 1 29 80 . . . . 11 Level 2 6 | . . . . . . 13 19 . . . . . Level 3 . | . . . . . . . . . . . . . Level 4 . | . . . . . . . . . . . . . Level 5 . | . . . . . . . . . . . . . High Security . | . . . . . . . . . . . . . Max Security . | . . . . . . . . . . . . . Squads Dispatched 12 | . 2 . . . . 3 5 . . . . 2 Investigation 2 | . . . . . . 1 1 . . . . . Extermination 5 | . . . . . . 1 3 . . . . 1 Reinforcement 5 | . 2 . . . . 1 1 . . . . 1 Assault . | . . . . . . . . . . . . . Garrison . | . . . . . . . . . . . . . Intercept . | . . . . . . . . . . . . . Construction Impeded 1 | . . . . . . . . . . . . 1 Haulers Reinforced . | . . . . . . . . . . . . . Cargo Convoy Interrupts 1 | . . . . . . 1 . . . . . . Stealth | -11 -10 -10 -10 -9 -8 -7 -6 -6 -6 -6 -5 -5 --------- Run | Scr Mat Min Exi Min Mat Fac Fac Low Low Dat Pro Fac Distress Signals 7 | . 1 . . . 2 . 1 . . . . 3 Communications Jammed . | . . . . . . . . . . . . . Distress Signals . | . . . . . . . . . . . . . Times Spotted 152 | . 23 3 . 9 16 20 24 2 3 . 16 36 Peak Tracking Total 13 | . 7 3 . 4 4 5 4 1 2 . 13 13 Tactical Retreats 16 | . 1 . . 1 . 3 1 . . . 1 9 Traps | -11 -10 -10 -10 -9 -8 -7 -6 -6 -6 -6 -5 -5 ------- Run | Scr Mat Min Exi Min Mat Fac Fac Low Low Dat Pro Fac Traps Triggered 6 | . . . . 1 . 4 . . . . . 1 Indirectly 1 | . . . . . . 1 . . . . . . Trap Hack Attempts . | . . . . . . . . . . . . . Triggered . | . . . . . . . . . . . . . Disarmed . | . . . . . . . . . . . . . Reprogrammed . | . . . . . . . . . . . . . Reused . | . . . . . . . . . . . . . Traps Extracted . | . . . . . . . . . . . . . Installed . | . . . . . . . . . . . . . Triggered 4 | . . . . . . 2 . 1 1 . . . Machines | -11 -10 -10 -10 -9 -8 -7 -6 -6 -6 -6 -5 -5 ---------- Run | Scr Mat Min Exi Min Mat Fac Fac Low Low Dat Pro Fac Machines Disabled 13 | . . . . . . 4 2 1 . . 2 4 Max in Single Turn 3 | . . . . . . 3 1 1 . . 1 3 Machines Sabotaged . | . . . . . . . . . . . . . Garrisons Compromised 1 | . . . . . . 1 . . . . . . Overloaded Fab Kills . | . . . . . . . . . . . . . Fab Network Shutdowns . | . . . . . . . . . . . . . Hacking | -11 -10 -10 -10 -9 -8 -7 -6 -6 -6 -6 -5 -5 --------- Run | Scr Mat Min Exi Min Mat Fac Fac Low Low Dat Pro Fac Machines Accessed 38 | . 8 1 3 1 7 4 8 . . 3 1 2 Terminals 22 | . 7 1 . . 6 2 5 . . . . 1 Fabricators 3 | . . . . . . 1 1 . . . . 1 Repair Stations 1 | . . . . . . 1 . . . . . . Recycling Units 2 | . 1 . . . . . 1 . . . . . Scanalyzers 2 | . . . . . 1 . 1 . . . . . Garrison Access . | . . . . . . . . . . . . . Total Hacks 117 | . 14 2 26 1 15 14 19 . . 19 1 6 Successful 79 | . 5 1 26 1 5 7 11 . . 19 1 3 Failed 38 | . 9 1 . . 10 7 8 . . . . 3 Catastrophic 9 | . 1 . . . 4 . 4 . . . . . Database Lockouts . | . . . . . . . . . . . . . Manual 38 | . 6 1 1 . 11 4 10 . . . 1 4 Terminals 50 | . 13 2 . . 13 8 10 . . . . 4 Fabricators 7 | . . . . . . 3 2 . . . . 2 Repair Stations 3 | . . . . . . 3 . . . . . . Recycling Units 3 | . 1 . . . . . 2 . . . . . Scanalyzers 7 | . . . . . 2 . 5 . . . . . Garrison Access . | . . . . . . . . . . . . . Terminal Hacks 62 | . 4 1 26 1 2 5 1 . . 19 1 2 Record 35 | . . . 26 . 1 2 . . . 5 1 . Part Schematic 8 | . . . . . . . 1 . . 7 . . Robot Schematic 4 | . . . . . . . . . . 4 . . Prototype ID Bank 3 | . . . . . . . . . . 3 . . Open Door 1 | . . . . 1 . . . . . . . . Terminal Index 3 | . 1 . . . 1 1 . . . . . . Fabricator Index 1 | . . . . . . . . . . . . 1 Repair Station Index 1 | . . . . . . 1 . . . . . . Alert Level 1 | . . . . . . 1 . . . . . . Unreport Threat 1 | . . . . . . . . . . . . 1 Locate Traps 3 | . 3 . . . . . . . . . . . Dispatch Records 1 | . . 1 . . . . . . . . . . Fabricator Hacks 3 | . . . . . . . 2 . . . . 1 Load Schematic 2 | . . . . . . . 1 . . . . 1 Build 1 | . . . . . . . 1 . . . . . Repair Station Hacks 2 | . . . . . . 2 . . . . . . Scan Component 1 | . . . . . . 1 . . . . . . Repair 1 | . . . . . . 1 . . . . . . Recycling Unit Hacks 2 | . 1 . . . . . 1 . . . . . Report Inventory 2 | . 1 . . . . . 1 . . . . . Scanalyzer 7 | . . . . . 2 . 5 . . . . . Insert Component 4 | . . . . . 1 . 3 . . . . . Analyze 3 | . . . . . 1 . 2 . . . . . Garrison Access Hacks . | . . . . . . . . . . . . . Unauthorized Hacks 3 | . . . . . 1 . 2 . . . . . Terminals 3 | . . . . . 1 . 2 . . . . . Track 1 | . . . . . . . 1 . . . . . Assimilate 2 | . . . . . 1 . 1 . . . . . Fabricators . | . . . . . . . . . . . . . Repair Stations . | . . . . . . . . . . . . . Recycling Units . | . . . . . . . . . . . . . Scanalyzers . | . . . . . . . . . . . . . Garrison Access . | . . . . . . . . . . . . . Data Cores Recovered 1 | . . . . . . . 1 . . . . . Used . | . . . . . . . . . . . . . Hacking Detections 29 | . 7 1 . . 7 4 8 . . . . 2 Full Trace Events 2 | . . . . . . 1 1 . . . . . Feedback Events . | . . . . . . . . . . . . . Feedback Blocked . | . . . . . . . . . . . . . Robot Schematics Acquired 4 | . . . . . . . . . . 4 . . Robots Built . | . . . . . . . . . . . . . Matter . | . . . . . . . . . . . . . Time . | . . . . . . . . . . . . . Total Robot Build Rating . | . . . . . . . . . . . . . Part Schematics Acquired 11 | . . . . . 1 . 3 . . 7 . . Parts Built 1 | . . . . . . . 1 . . . . . Matter 190 | . . . . . . . 190 . . . . . Time 31 | . . . . . . . 31 . . . . . Total Part Build Rating 5 | . . . . . . . 5 . . . . . Parts Repaired 1 | . . . . . . 1 . . . . . . Time 44 | . . . . . . 44 . . . . . . Parts Recycled . | . . . . . . . . . . . . . Recycled Matter . | . . . . . . . . . . . . . Retrieved Matter . | . . . . . . . . . . . . . Retrieved Components . | . . . . . . . . . . . . . Parts Scanalyzed 3 | . . . . . 1 . 2 . . . . . Part Schematics Acquired 3 | . . . . . 1 . 2 . . . . . Parts Damaged 1 | . . . . . 1 . . . . . . . Bothacking | -11 -10 -10 -10 -9 -8 -7 -6 -6 -6 -6 -5 -5 ------------ Run | Scr Mat Min Exi Min Mat Fac Fac Low Low Dat Pro Fac Used RIF Installer . | . . . . . . . . . . . . . Robots Hacked . | . . . . . . . . . . . . . Non-combat . | . . . . . . . . . . . . . Combat . | . . . . . . . . . . . . . Robot Hacks Applied . | . . . . . . . . . . . . . Relay Couplers Released . | . . . . . . . . . . . . . Robots Rewired . | . . . . . . . . . . . . . Allies Hacked . | . . . . . . . . . . . . . Hacks Repelled . | . . . . . . . . . . . . . Allies | -11 -10 -10 -10 -9 -8 -7 -6 -6 -6 -6 -5 -5 -------- Run | Scr Mat Min Exi Min Mat Fac Fac Low Low Dat Pro Fac Total Allies 24 | . . . . 3 1 18 1 . . . 1 . Largest Group 17 | . . . . 3 3 17 1 . . . 1 . Highest-Rated Group 708 | . . . . 40 40 708 26 . . . 95 . Highest-Rated Ally 95 | . . . . 16 16 74 26 . . . 95 . Total Orders 2 | . . . . . . . . . . . . 2 EXPLORE 2 | . . . . . . . . . . . . 2 Ally Attacks 53 | . . . . . 28 19 . . . . 6 . Total Damage 884 | . . . . . 256 325 . . . . 303 . Kills 8 | . . . . . 4 4 . . . . . . Allies Corrupted 1 | . . . . . . . 1 . . . . . Allies Melted . | . . . . . . . . . . . . . Intel | -11 -10 -10 -10 -9 -8 -7 -6 -6 -6 -6 -5 -5 ------- Run | Scr Mat Min Exi Min Mat Fac Fac Low Low Dat Pro Fac Robot Analysis Total . | . . . . . . . . . . . . . Derelict Logs Recovered 6 | . . . . 2 . . . 2 . . 2 . Drone Launches 4 | . . . . . . . . . . . . 4 Drone Recoveries 1 | . . . . . . . . . . . . 1 Exploration | -11 -10 -10 -10 -9 -8 -7 -6 -6 -6 -6 -5 -5 ------------- Run | Scr Mat Min Exi Min Mat Fac Fac Low Low Dat Pro Fac Turns Passed 9896 | 11 749 485 1430 1395 675 949 1617 776 422 92 558 737 Spaces Moved 6873 | 10 522 289 653 594 494 747 1266 597 352 81 444 824 Core 481 | . . . . . . . . . . . 66 415 Treads 325 | . . . . 321 4 . . . . . . . Legs 1747 | 10 522 289 653 273 . . . . . . . . Wheels 3911 | . . . . . 490 747 1266 597 352 81 378 . Hover 409 | . . . . . . . . . . . . 409 Flight . | . . . . . . . . . . . . . Fastest Speed 48 | 120 120 120 200 160 115 115 100 115 115 115 50 48 Average Speed 127 | 120 120 147 217 215 116 115 104 120 115 115 105 67 Slowest Speed 280 | 120 200 200 280 280 260 115 130 130 115 115 115 250 Overloaded Moves . | . . . . . . . . . . . . . Propulsion Burnouts . | . . . . . . . . . . . . . Robots Hopped . | . . . . . . . . . . . . . Cave-ins Triggered . | . . . . . . . . . . . . . Exploration Rate (%) 53 | 2 80 54 90 92 35 24 35 68 52 69 68 29 Regions Visited 12 Branch Regions 7 Pre-discovered Areas 2 | . . . . 1 . . . 1 . . . . Known Exits Taken 6 | . . . . . . 1 1 1 1 1 1 . Unknown Exits Taken 6 | 1 1 1 1 1 1 . . . . . . . Scrap Searched 8 | . . 1 . 2 . . . 2 1 . 2 . Spaces Dug 11 | . 2 . . . . . . 3 . . 5 1 Terrain Destroyed 98 | . 2 4 . 5 12 3 1 6 8 . 6 51 Melee 2 | . 2 . . . . . . . . . . . Projectile 49 | . . 4 . 5 12 3 1 6 8 . 6 4 AOE 47 | . . . . . . . . . . . . 47 Terrain Rammed . | . . . . . . . . . . . . . Walls Destroyed . | . . . . . . . . . . . . . Machines Disabled . | . . . . . . . . . . . . . Actions | -11 -10 -10 -10 -9 -8 -7 -6 -6 -6 -6 -5 -5 --------- Run | Scr Mat Min Exi Min Mat Fac Fac Low Low Dat Pro Fac Total 7761 | 9 589 328 667 712 598 817 1516 629 359 80 503 954 Wait 431 | . 1 14 . 97 81 22 156 17 . . 12 31 Move 6861 | 9 521 288 652 593 493 746 1265 596 351 80 443 824 Hop . | . . . . . . . . . . . . . Pick Up 73 | . 13 2 2 7 8 6 18 1 3 . 4 9 Fast Attach 32 | . 3 1 2 4 2 2 4 . . . . 14 Attach 40 | . 3 . 2 . 3 6 11 2 . . 5 8 Detach 21 | . . . 4 . 1 1 7 . . . 2 6 Swap 12 | . 3 . . 1 1 1 6 . . . . . Drop 67 | . 8 3 5 10 9 4 13 . . . 5 10 Fire 196 | . 29 20 . . . 20 33 12 5 . 29 48 Melee 8 | . 8 . . . . . . . . . . . Ram 5 | . . . . . . 1 . . . . . 4 Kick . | . . . . . . . . . . . . . Crush . | . . . . . . . . . . . . . Escape Stasis 8 | . . . . . . 8 . . . . . . Rewire 7 | . . . . . . . 3 1 . . 3 . Trap . | . . . . . . . . . . . . . Miscellaneous . | . . . . . . . . . . . . . Route ------- -11/Scrapyard -10/Materials (discovered 4 exits: [*Mat x2] / *Min x2) -10/Mines -10/Exiles (discovered 2 exits: *Min x2) -9/Mines -8/Materials -7/Factory -6/Factory (discovered 2 exits: *Fac / *Low) -6/Lower Caves -6/Lower Caves -6/Data Miner -5/Proximity Caves -5/Factory History --------- Turn | Location | Event 1 | -11/Scrapyard | Discovered new exit (range 3) 12 | -11/Scrapyard | Entered Materials 277 | -10/Materials | Discovered new exit (range 16) 305 | -10/Materials | Build established: Mutant 336 | -10/Materials | Discovered new exit (range 7) 487 | -10/Materials | Core integrity fell below 50% 587 | -10/Materials | Discovered new exit (range 3) 736 | -10/Materials | Discovered new exit (range 12) 761 | -10/Materials | Entered Mines 762 | -10/Mines | YI-UF0 nonchalantly dropped a Grenade Launcher on the ground 925 | -10/Mines | A weapon hastily lodged in a ceiling crevice suddenly fell to the ground 957 | -10/Mines | Assembled infested the area 1238 | -10/Mines | Deemed a non-threat by the Exiles lab entrance 1238 | -10/Mines | Discovered new exit (range 5) 1246 | -10/Mines | Entered Exiles 1286 | -10/Exiles | Discovered new exit (range 14) 1310 | -10/Exiles | Met 8R-AWN 1342 | -10/Exiles | Met EX-HEX 1414 | -10/Exiles | Met EX-BIN 1444 | -10/Exiles | Met EX-DEC 1557 | -10/Exiles | Visited The Gauntlet 1858 | -10/Exiles | Discovered new exit (range 14) 2020 | -10/Exiles | Aligned with FarCom system 2022 | -10/Exiles | Given EX-Vault access code 2072 | -10/Exiles | Opened EX-Vault 2087 | -10/Exiles | Found Prototype Device 2188 | -10/Exiles | Warned to stay clear of 0b10 Research branches 2239 | -10/Exiles | Identified Cloak of Protection 2361 | -10/Exiles | Found Prototype Device 2362 | -10/Exiles | Identified Chronowheel 2362 | -10/Exiles | Activated Chronowheel 2387 | -10/Exiles | Found Prototype Energy Gun 2387 | -10/Exiles | Identified AWS/Thermal 2676 | -10/Exiles | Stole two prototypes: AWS/Thermal, Cloak of Protection 2676 | -10/Exiles | Entered Mines 3104 | -9/Mines | Core integrity fell below 20% 3294 | -9/Mines | Received a Rocket Launcher from a helpful Derelict 3494 | -9/Mines | Joined a pair of Derelicts in attacking an 0b10 outpost 3502 | -9/Mines | Learned location of Zion (-7) 3615 | -9/Mines | Met a Derelict who couldn't figure out how to use a Trap Extractor 3993 | -9/Mines | Learned Materials emergency access door positions 3997 | -9/Mines | Discovered new exit (range 5) 4015 | -9/Mines | Assisted by bots powering up and referring to "LRC-V3" 4071 | -9/Mines | Entered Materials 4071 | -8/Materials | Accompanied by 3 allies 4071 | -8/Materials | Evolved 4 slots: Power x1, Propulsion x1, Utility x2 4709 | -8/Materials | Discovered new exit (range 15) 4746 | -8/Materials | Entered Factory 4746 | -7/Factory | Evolved 2 slots: Utility x2 4748 | -7/Factory | FarCom data flow suspended 5179 | -7/Factory | Repaired Arm. Huge Wheel 5571 | -7/Factory | Cargo convoy interrupted 5676 | -7/Factory | Discovered new exit (range 4) 5693 | -7/Factory | Identified exit to Factory 5695 | -7/Factory | Entered another Factory area 5695 | -6/Factory | Evolved 2 slots: Propulsion x1, Utility x1 5733 | -6/Factory | Discovered new exit (range 13) 6724 | -6/Factory | Fabricated Enh. Optical Array (x1) 7156 | -6/Factory | Spotted B-75 Beast 7296 | -6/Factory | Discovered new exit (range 5) 7311 | -6/Factory | Identified exit to Lower Caves 7312 | -6/Factory | Entered Lower Caves 7405 | -6/Lower Caves | Learned Factory emergency access door positions 7447 | -6/Lower Caves | Attacked by a delusional Derelict stockpiling parts 7965 | -6/Lower Caves | Discovered new exit (range 9) 8082 | -6/Lower Caves | Identified exit to Lower Caves 8088 | -6/Lower Caves | Entered another Lower Caves area 8088 | -6/Lower Caves | Spotted K8-5YG(f) 8089 | -6/Lower Caves | Encountered a Master Thief 8092 | -6/Lower Caves | Spotted 9G-O57(f) 8093 | -6/Lower Caves | Encountered a Master Thief 8096 | -6/Lower Caves | Broken AWS/Thermal stolen by Master Thief 8100 | -6/Lower Caves | Destroyed 9G-O57(f) 8175 | -6/Lower Caves | Encountered a Warlord checkpoint 8407 | -6/Lower Caves | Discovered new exit (range 13) 8508 | -6/Lower Caves | Identified exit to Data Miner 8510 | -6/Lower Caves | Entered Data Miner 8510 | -6/Data Miner | Discovered new exit (range 6) 8532 | -6/Data Miner | Met Data Miner 8576 | -6/Data Miner | Received God Mode back door access code from Data Miner 8601 | -6/Data Miner | Identified exit to Proximity Caves 8602 | -6/Data Miner | Entered Proximity Caves 8607 | -5/Proximity Caves | Learned Factory stockpile data 8759 | -5/Proximity Caves | Found Alien Artifact 8762 | -5/Proximity Caves | Identified Dimensional Node Initializer 8762 | -5/Proximity Caves | Initialized slip node 8992 | -5/Proximity Caves | Spotted B-75 Beast 9023 | -5/Proximity Caves | Acquired the password to a Derelict Tinkerer's latest research 9036 | -5/Proximity Caves | Found Prototype Special Weapon 9050 | -5/Proximity Caves | Learned Factory non-interactive machine intel 9074 | -5/Proximity Caves | Attracted the attention of an 0b10 checkpoint 9106 | -5/Proximity Caves | Attracted the attention of an 0b10 base 9116 | -5/Proximity Caves | Identified Molecular Deconstructor 9142 | -5/Proximity Caves | Core integrity fell below 50% 9154 | -5/Proximity Caves | Discovered new exit (range 9) 9159 | -5/Proximity Caves | Identified exit to Factory 9160 | -5/Proximity Caves | Entered Factory 9160 | -5/Factory | Evolved 2 slots: Utility x2 9163 | -5/Factory | Loaded intel: 225 non-interactive machine locations 9168 | -5/Factory | Found Exp. Targeting Computer 9181 | -5/Factory | Lost 7 parts (2p4u1w) 9193 | -5/Factory | Spotted B-75 Beast 9432 | -5/Factory | Lost 3 parts (2u1w) 9535 | -5/Factory | Lost 3 parts (1n1u1w) 9823 | -5/Factory | Lost 4 parts (2n1u1w) 9856 | -5/Factory | Core integrity fell below 50% 9879 | -5/Factory | Core integrity fell below 20% 9897 | -5/Factory | Destroyed by S-27 Virus with Autogun Last Messages --------------- 09857_ Dropped Mic. Fission Core. 09857_ Dropped Enh. Fission Core. 09858_ Dropped Gyrokinetic Inverter. 09858_ Penetrated by Slug. 09858_ Enh. Optical Array destroyed. 09860_ Penetrated by Slug. 09863_ Slug penetrates Wall. 09863_ K-01 Serf destroyed. 09864_ K-01 Serf collects debris. 09868_ Penetrated by Slug. 09869_ K-01 Serf collects debris. 09870_ Slug penetrates Wall. 09886_ System corrupted: Matter fused (-10). 09891_ S-27 Virus destroyed. 09891_ Triggered Segregator Trap. 09891_ Arcs of energy rise from the floor. 09891_ Exp. Targeting Computer blown off. 09891_ Adv. Signal Interpreter blown off. 09892_ U-05 Engineer lays Concrete. [Achievement: Tester] Map ----- +----------------------------------------------------+ | ????????????????????????# #?????????????# | | ????????????????###?????#[ #?????????????# | | ????????????????? ????#%= #######?????+##= | | ????????????????"""S"???#= !%%= | | ????????????????""" "???# ############+######### | | ???????????????? ??# #????????????????????? | | ????????????????? [ ??# #??????????????????? " | | ?????????????????? ?# #??????????????????# " | | ?????????????""""?"""" ?# #????"""?"""???????# " | | ?????????????"""" """" # #????"""?"""???????# | | ?????????????"""" """" # #????"""?"""???????# " | | ?????????????"""" """" + +??????????????????# " | | ????????????? # #????"""?"""???????# " | | ???????????# ! # ^ #????"""?"""???????#?? | | ???????????############?#^s #????"""?"""?????????? | | ????????????????????????# #????????????????????? | | ????????????????????"""?# #????????????????????? | | ????????????????????"""?# s #????????????????????? | | ????????????????????"""?# #????????????????????? | | ????????????????????????# u #????????????????????? | | ????????????????????????# #????????????????????? | | ????????????????????????+ #????????????????????? | | ????????????????????????# #????????????????????? | | ???????????????????????## ##???????????????????? | | ???????????????????????# #???????????????????? | | ???????????????????????# @t #????????????? | | ???????????????????????# #????????????? | | ???????????????????????# #????????????? ! | | ???????????????????????# #???????????????????? | | ???????????????????????### ###???????????????????? | | ?????????????????????????# #?????????????????????? | | ?????????????????????????# #??????????????"""?"""? | | ????????????????????????? ??????????????"""?"""? | | ??????????"""????????????#+#??????????????"""?"""? | | ????????"""""????????????????????????????????????? | | ????????"""""?????????????"""????????????????????? | | ??????????????????????????"""????????????????????? | | ??????????????????????????"""????????????????????? | | ?????????????????????????????????????????????????? | | ??????????"""????????????????????????????????????? | | ??????????"""????????????????????????????????????? | | ??????????"""????????????????????????????????????? | | ?????????????????????????????????????????????????? | | ??????????"""????????????????????????????????????? | | ??????????"""????????????????????????????????????? | | ??????????"""????????????????????????????????????? | | ????????????????????????+????????????????????????? | | ????????????????????????????????????####+#######?? | | ?????????????????????"""""?"""""??#? #?? | | ???"""?"""?"""???????"""""?"""""??# """"" #?? | +----------------------------------------------------+ Best States ------------- Heat Dissipation 56 Energy Generation 34 Energy Capacity 420 Matter Stores 300 Matter Capacity 600 Sight Range 22 Robot Scan Range 16 Terrain Scan Density 10 Cloak Strength 5 Armor Coverage 225 Core Shielding 30 Power Shielding 66 Propulsion Shielding 66 Weapon Shielding 66 Evasion (%) 65 Targeting Accuracy 12 Target Analysis 6 Recoil Reduction 2 Kinecelleration 40 Item Schematics ----------------- Arm. Huge Wheel | -8/Materials | Scanalyzed Plasma Cannon | -6/Factory | Scanalyzed Imp. Weapon Shielding | -6/Factory | Scanalyzed Enh. Optical Array | -6/Factory | Hacked Combat Drone Bay | -6/Data Miner | Free Lgt. Regenerative Plating | -6/Data Miner | Free Cmb. Gravmag System | -6/Data Miner | Free Triangulator | -6/Data Miner | Free Exp. Terrain Scan Processor | -6/Data Miner | Free Exp. Targeting Computer | -6/Data Miner | Free Kinetic Spear | -6/Data Miner | Free Robot Schematics ------------------ S-27 Virus | -6/Data Miner | Free G-50 Soldier | -6/Data Miner | Free I-36 Angel | -6/Data Miner | Free H-66 Slayer | -6/Data Miner | Free Fabricated ------------ Enh. Optical Array | x1 | -6/Factory Alien Tech Used ----------------- Dimensional Node Initializer Achievements -------------- Alien Tech Deconstruction Tester Challenges ------------ None Game ------ Seed VortexTrapWeb Manual? 0 Play Time 02:03:15 Cumulative 70.5 hours Start 2021.08.24 @ 18:15:12 End 2021.08.25 @ 20:27:10 Sessions 3 Manual Loads 0 Difficulty Rogue Special Mode None Game No. 55 Rogue 55 Adventurer 0 Explorer 0 Win Type - Total 0 Types 0/0/0/0/0/0/0/0/0 Lore% 39 Gallery% 50 Achievement% 32 Wizard Run 0 Options --------- ASCII 0 Keyboard 1 Movement Numpad Keybinds 0 Fullscreen 2 Font 18/SmallcapsGlow Map View 76x50 Tactical HUD 1 Map Filters NONE Filters NONE Steam 1 RUN: 209b930f-e3a6-4a10-91a0-253afc7bc62c